fUSD/lending_fUSD_20240902
["ID","MTS","AMOUNT","RATE_DAILY","PERIOD"]
[336916618,1725241856610,-583.28,0.00022464,2]
[336916619,1725241856619,-715.1,0.00022464,2]
[336916620,1725241856628,-500.0,0.00022464,2]
[336916621,1725241856638,-500.0,0.00022464,2]
[336916622,1725241856647,-500.0,0.00022464,2]
[336916623,1725241856656,-767.71,0.00022464,2]
[336916624,1725241856665,-500.0,0.00022464,2]
[336916625,1725241856674,-500.0,0.00022464,2]
[336916626,1725241856684,-500.0,0.00022464,2]
[336916627,1725241856693,-500.0,0.00022464,2]
[336916628,1725241856705,-682.95,0.00022464,2]
[336916629,1725241856714,-500.0,0.00022464,2]
[336916630,1725241856723,-764.66,0.00022464,2]
[336916631,1725241856732,-500.0,0.00022464,2]
[336916632,1725241856745,-500.0,0.00022464,2]
[336916633,1725241856754,-772.26,0.00022464,2]
[336916634,1725241856763,-714.86,0.00022464,2]
[336916635,1725241856772,-503.31,0.00022464,2]
[336916636,1725241856781,-500.0,0.00022464,2]
[336916637,1725241856791,-500.0,0.00022464,2]
[336916638,1725241856800,-500.0,0.00022464,2]
[336916639,1725241856809,-500.0,0.00022464,2]
[336916640,1725241856819,-500.0,0.00022464,2]
[336916641,1725241856829,-500.0,0.00022464,2]
[336916642,1725241856838,-789.66,0.00022464,2]
[336916643,1725241856847,-500.0,0.00022464,2]
[336916644,1725241856856,-500.0,0.00022464,2]
[336916645,1725241856865,-575.47,0.00022464,2]
[336916646,1725241856874,-962.71,0.00022464,2]
[336916647,1725241856883,-500.0,0.00022464,2]
[336916648,1725241856893,-539.33,0.00022464,2]
[336916649,1725241856902,-1300.94,0.00022464,2]
[336916650,1725241856912,-653.29,0.00022464,2]
[336916651,1725241856921,-500.0,0.00022464,2]
[336916652,1725241856930,-544.6701319,0.00022464,2]
[336916653,1725241856940,-556.06,0.00022464,2]
[336916654,1725241856949,-774.0,0.00022464,2]
[336916655,1725241856960,-2136.87,0.00022464,2]
[336916656,1725241856969,-500.0,0.00022464,2]
[336916657,1725241856978,-500.0,0.00022464,2]
[336916658,1725241856987,-959.07,0.00022464,2]
[336916659,1725241856998,-861.18,0.00022464,2]
[336916660,1725241857007,-591.61,0.00022464,2]
[336916661,1725241857017,-705.48,0.00022464,2]
[336916662,1725241857027,-705.48,0.00022464,2]
[336916663,1725241857037,-759.66,0.00022464,2]
[336916664,1725241857047,-500.0,0.00022464,2]
[336916665,1725241857058,-939.34,0.00022464,2]
[336916666,1725241857067,-817.06,0.00022465,2]
[336916667,1725241857076,-817.06,0.00022465,2]
[336916668,1725241857085,-1099.01,0.00022465,2]
[336916669,1725241857094,-1099.01,0.00022465,2]
[336916670,1725241857103,-736.59,0.00022465,2]
[336916671,1725241857112,-736.59,0.00022465,2]
[336916672,1725241857121,-913.51,0.00022465,2]
[336916673,1725241857131,-913.51,0.00022465,2]
[336916674,1725241857141,-500.0,0.00022465,2]
[336916675,1725241857151,-578.71,0.00022465,2]
[336916676,1725241857160,-578.71,0.00022465,2]
[336916677,1725241857170,-500.0,0.00022465,2]
[336916678,1725241857179,-520.92,0.00022465,2]
[336916679,1725241857188,-520.92,0.00022465,2]
[336916680,1725241857198,-500.0,0.00022465,2]
[336916681,1725241857208,-3000.0,0.00022465,2]
[336916682,1725241857217,-3000.0,0.00022465,2]
[336916683,1725241857226,-3000.0,0.00022465,2]
[336916684,1725241857235,-3000.0,0.00022465,2]
[336916685,1725241857245,-3000.0,0.00022465,2]
[336916686,1725241857254,-3000.0,0.00022465,2]
[336916687,1725241857263,-732.59781773,0.00022465,2]
[336916688,1725241857272,-953.71,0.00022465,2]
[336916689,1725241857281,-953.71,0.00022465,2]
[336916690,1725241857290,-500.0,0.00022465,2]
[336916691,1725241857300,-2875.94,0.00022465,2]
[336916692,1725241857309,-2875.94,0.00022465,2]
[336916693,1725241857319,-500.0,0.00022465,2]
[336916694,1725241857329,-2846.06,0.00022465,2]
[336916695,1725241857339,-2846.06,0.00022465,2]
[336916696,1725241857350,-500.0,0.00022465,2]
[336916697,1725241857360,-1332.84,0.00022465,2]
[336916698,1725241857370,-1332.84,0.00022465,2]
[336916699,1725241857380,-500.0,0.00022465,2]
[336916700,1725241857390,-1576.81,0.00022465,2]
[336916701,1725241857399,-1576.81,0.00022465,2]
[336916702,1725241857410,-1025.23,0.00022465,2]
[336916703,1725241857419,-1025.23,0.00022465,2]
[336916704,1725241857428,-1401.94,0.00022465,2]
[336916705,1725241857438,-1401.94,0.00022465,2]
[336916706,1725241857448,-546.26,0.00022465,2]
[336916707,1725241857457,-546.26,0.00022465,2]
[336916708,1725241857467,-500.0,0.00022465,2]
[336916709,1725241857477,-1370.52,0.00022465,2]
[336916710,1725241857487,-1370.52,0.00022465,2]
[336916711,1725241857497,-500.0,0.00022465,2]
[336916712,1725241857506,-1773.37,0.00022465,2]
[336916713,1725241857516,-1773.37,0.00022465,2]
[336916714,1725241857525,-1341.5,0.00022465,2]
[336916715,1725241857535,-1341.5,0.00022465,2]
[336916716,1725241857545,-500.0,0.00022465,2]
[336916717,1725241857554,-500.0,0.00022465,2]
[336916718,1725241857564,-576.61,0.00022465,2]
[336916719,1725241857574,-576.61,0.00022465,2]
[336916720,1725241857583,-2010.79,0.00022465,2]
[336916721,1725241857593,-2010.79,0.00022465,2]
[336916722,1725241857603,-500.0,0.00022465,2]
[336916723,1725241857612,-500.0,0.00022465,2]
[336916724,1725241857622,-500.0,0.00022465,2]
[336916725,1725241857632,-500.0,0.00022465,2]
[336916726,1725241857641,-500.0,0.00022465,2]
[336916727,1725241857651,-1590.93,0.00022465,2]
[336916728,1725241857660,-1590.93,0.00022465,2]
[336916729,1725241857670,-500.0,0.00022465,2]
[336916730,1725241857680,-2423.43,0.00022465,2]
[336916731,1725241857690,-2423.43,0.00022465,2]
[336916732,1725241857701,-500.0,0.00022465,2]
[336916733,1725241857711,-892.18,0.00022465,2]
[336916734,1725241857720,-892.18,0.00022465,2]
[336916735,1725241857730,-500.0,0.00022465,2]
[336916736,1725241857744,-1534.04,0.00022465,2]
[336916737,1725241857753,-1182.64,0.00022465,2]
[336916738,1725241857763,-500.0,0.00022465,2]
[336916739,1725241857773,-1534.04,0.00022465,2]
[336916740,1725241857783,-1182.64,0.00022465,2]
[336916741,1725241857792,-1246.98,0.00022465,2]
[336916742,1725241857802,-1246.98,0.00022465,2]
[336916743,1725241857811,-500.0,0.00022465,2]
[336916744,1725241857822,-500.0,0.00022465,2]
[336916745,1725241857832,-511.27452072,0.00022465,2]
[336916746,1725241857841,-1178.51,0.00022465,2]
[336916747,1725241857851,-1178.51,0.00022465,2]
[336916748,1725241857860,-646.5,0.00022465,2]
[336916749,1725241857870,-646.5,0.00022465,2]
[336916750,1725241857879,-500.0,0.00022465,2]
[336916751,1725241857889,-3262.11,0.00022465,2]
[336916752,1725241857898,-3262.11,0.00022465,2]
[336916753,1725241857910,-500.0,0.00022465,2]
[336916754,1725241857920,-500.0,0.00022465,2]
[336916755,1725241857930,-500.0,0.00022465,2]
[336916756,1725241857940,-500.0,0.00022465,2]
[336916758,1725241857950,-500.0,0.00022465,2]
[336916760,1725241857960,-824.83,0.00022465,2]
[336916762,1725241857970,-824.83,0.00022465,2]
[336916764,1725241857981,-500.0,0.00022465,2]
[336916766,1725241857990,-2494.8,0.00022465,2]
[336916768,1725241858000,-2494.8,0.00022465,2]
[336916770,1725241858009,-3138.29,0.00022465,2]
[336916772,1725241858019,-3138.29,0.00022465,2]
[336916774,1725241858028,-500.0,0.00022465,2]
[336916776,1725241858038,-785.22,0.00022465,2]
[336916778,1725241858047,-785.22,0.00022465,2]
[336916780,1725241858057,-500.0,0.00022465,2]
[336916782,1725241858066,-1944.19,0.00022465,2]
[336916784,1725241858076,-1944.19,0.00022465,2]
[336916786,1725241858086,-314.64,0.00022465,2]
[336916788,1725241858095,-500.0,0.00022465,2]
[336916790,1725241858105,-642.27,0.00022465,2]
[336916792,1725241858115,-642.27,0.00022465,2]
[336916794,1725241858124,-500.0,0.00022465,2]
[336916796,1725241858133,-1353.25,0.00022465,2]
[336916798,1725241858143,-1353.25,0.00022465,2]
[336916800,1725241858152,-500.0,0.00022465,2]
[336916802,1725241858162,-3954.94,0.00022465,2]
[336916804,1725241858172,-3954.94,0.00022465,2]
[336916806,1725241858182,-500.0,0.00022465,2]
[336916808,1725241858191,-500.0,0.00022465,2]
[336916810,1725241858202,-407.75436474,0.00022465,2]
[336916812,1725241858211,-710.69,0.00022465,2]
[336916814,1725241858221,-710.69,0.00022465,2]
[336916816,1725241858231,-509.43980917,0.00022465,2]
[336916818,1725241858241,-500.0,0.00022465,2]
[336916820,1725241858251,-626.61,0.00022465,2]
[336916822,1725241858260,-626.61,0.00022465,2]
[336916824,1725241858270,-500.0,0.00022465,2]
[336916826,1725241858280,-500.0,0.00022465,2]
[336916828,1725241858291,-2183.39,0.00022465,2]
[336916830,1725241858301,-2183.39,0.00022465,2]
[336916832,1725241858311,-500.0,0.00022465,2]
[336916834,1725241858322,-502.13412403,0.00022465,2]
[336916836,1725241858332,-500.0,0.00022465,2]
[336916839,1725241858342,-500.0,0.00022465,2]
[336916841,1725241858351,-500.0,0.00022465,2]
[336916843,1725241858361,-500.0,0.00022465,2]
[336916845,1725241858371,-1739.01,0.00022465,2]
[336916847,1725241858380,-1739.01,0.00022465,2]
[336916849,1725241858390,-500.0,0.00022465,2]
[336916851,1725241858400,-517.31,0.00022465,2]
[336916853,1725241858411,-517.31,0.00022465,2]
[336916855,1725241858421,-2549.62,0.00022465,2]
[336916857,1725241858432,-2549.62,0.00022465,2]
[336916859,1725241858441,-500.0,0.00022465,2]
[336916861,1725241858452,-1518.56,0.00022465,2]
[336916863,1725241858465,-1518.56,0.00022465,2]
[336916865,1725241858474,-500.0,0.00022465,2]
[336916867,1725241858484,-500.0,0.00022465,2]
[336916869,1725241858494,-500.0,0.00022465,2]
[336916871,1725241858504,-500.0,0.00022465,2]
[336916873,1725241858514,-500.0,0.00022465,2]
[336916876,1725241858524,-500.0,0.00022465,2]
[336916878,1725241858535,-658.75,0.00022465,2]
[336916880,1725241858545,-619.79,0.00022465,2]
[336916882,1725241858555,-619.79,0.00022465,2]
[336916884,1725241858565,-500.0,0.00022465,2]
[336916886,1725241858575,-500.0,0.00022465,2]
[336916888,1725241858585,-1323.87,0.00022465,2]
[336916890,1725241858595,-500.0,0.00022465,2]
[336916892,1725241858604,-2189.33,0.00022465,2]
[336916894,1725241858613,-2189.33,0.00022465,2]
[336916896,1725241858624,-500.0,0.00022465,2]
[336916898,1725241858634,-151.0,0.00022465,7]
[336916900,1725241858643,-658.7,0.00022465,2]
[336916902,1725241858653,-658.7,0.00022465,2]
[336916904,1725241858664,-500.0,0.00022465,2]
[336916906,1725241858675,-2672.93,0.00022465,2]
[336916907,1725241858687,-500.0,0.00022465,2]
[336916908,1725241858698,-2672.93,0.00022465,2]
[336916909,1725241858708,-500.0,0.00022465,2]
[336916910,1725241858718,-500.0,0.00022465,2]
[336916911,1725241858727,-500.0,0.00022465,2]
[336916912,1725241858737,-500.0,0.00022465,2]
[336916913,1725241858751,-500.0,0.00022465,2]
[336916914,1725241858760,-500.0,0.00022465,2]
[336916915,1725241858770,-1391.92,0.00022465,2]
[336916916,1725241858779,-1391.92,0.00022465,2]
[336916917,1725241858790,-1046.87,0.00022465,2]
[336916918,1725241858799,-1046.87,0.00022465,2]
[336916920,1725241858810,-500.0,0.00022465,2]
[336916922,1725241858821,-1303.18,0.00022465,2]
[336916924,1725241858831,-793.48,0.00022465,2]
[336916926,1725241858841,-500.0,0.00022465,2]
[336916929,1725241858851,-953.42,0.00022465,2]
[336916930,1725241858861,-953.42,0.00022465,2]
[336916932,1725241858870,-500.0,0.00022465,2]
[336916935,1725241858880,-500.0,0.00022465,2]
[336916937,1725241858891,-976.33,0.00022465,2]
[336916938,1725241858901,-656.52,0.00022465,2]
[336916940,1725241858911,-1233.94,0.00022465,2]
[336916942,1725241858920,-500.0,0.00022465,2]
[336916945,1725241858930,-500.0,0.00022465,2]
[336916947,1725241858940,-500.0,0.00022465,2]
[336916949,1725241858949,-500.0,0.00022465,2]
[336916951,1725241858959,-544.48,0.00022465,2]
[336916953,1725241858968,-1588.18,0.00022465,2]
[336916955,1725241858978,-1588.18,0.00022465,2]
[336916956,1725241858987,-1153.39,0.00022465,2]
[336916957,1725241858997,-1612.92,0.00022465,2]
[336916958,1725241859007,-1798.3,0.00022465,2]
[336916959,1725241859016,-745.45,0.00022465,2]
[336916960,1725241859026,-3918.76,0.00022465,2]
[336916961,1725241859036,-3918.76,0.00022465,2]
[336916962,1725241859045,-1391.48,0.00022465,2]
[336916963,1725241859055,-579.33,0.00022465,2]
[336916964,1725241859065,-579.33,0.00022465,2]
[336916965,1725241859074,-717.79,0.00022465,2]
[336916966,1725241859084,-500.0,0.00022465,2]
[336916967,1725241859094,-500.0,0.00022465,2]
[336916968,1725241859104,-500.0,0.00022465,2]
[336916969,1725241859113,-1768.03,0.00022465,2]
[336916970,1725241859123,-1275.08,0.00022465,2]
[336916971,1725241859133,-744.88,0.00022465,2]
[336916972,1725241859142,-744.88,0.00022465,2]
[336916973,1725241859153,-500.0,0.00022465,2]
[336916974,1725241859162,-500.0,0.00022465,2]
[336916976,1725241859172,-897.76,0.00022465,2]
[336916977,1725241859182,-500.0,0.00022465,2]
[336916978,1725241859192,-500.0,0.00022465,2]
[336916979,1725241859202,-1063.26,0.00022465,2]
[336916980,1725241859212,-500.0,0.00022465,2]
[336916981,1725241859221,-500.0,0.00022465,2]
[336916982,1725241859231,-840.6,0.00022465,2]
[336916983,1725241859241,-500.0,0.00022465,2]
[336916984,1725241859251,-806.42,0.00022465,2]
[336916985,1725241859260,-806.42,0.00022465,2]
[336916986,1725241859270,-1110.72,0.00022465,2]
[336916987,1725241859280,-728.3,0.00022465,2]
[336916988,1725241859290,-728.3,0.00022465,2]
[336916989,1725241859299,-500.0,0.00022465,2]
[336916990,1725241859309,-500.0,0.00022465,2]
[336916991,1725241859318,-975.4,0.00022465,2]
[336916992,1725241859328,-975.4,0.00022465,2]
[336916993,1725241859338,-565.0,0.00022465,2]
[336916994,1725241859347,-773.1,0.00022465,2]
[336916995,1725241859357,-500.0,0.00022465,2]
[336916996,1725241859367,-999.0,0.00022465,2]
[336916997,1725241859376,-1991.07,0.00022465,2]
[336916998,1725241859386,-999.0,0.00022465,2]
[336916999,1725241859395,-1991.07,0.00022465,2]
[336917000,1725241859405,-500.0,0.00022465,2]
[336917001,1725241859415,-443.89608456,0.00022465,2]
[336917002,1725241859425,-500.0,0.00022465,2]
[336917003,1725241859435,-500.0,0.00022465,2]
[336917004,1725241859445,-500.0,0.00022465,2]
[336917005,1725241859456,-500.0,0.00022465,2]
[336917006,1725241859465,-616.09159916,0.00022465,2]
[336917007,1725241859475,-808.3,0.00022465,2]
[336917008,1725241859485,-681.63,0.00022465,2]
[336917009,1725241859495,-1380.25,0.00022465,2]
[336917010,1725241859505,-1380.25,0.00022465,2]
[336917011,1725241859514,-500.0,0.00022465,2]
[336917012,1725241859524,-151.0,0.00022465,7]
[336917013,1725241859534,-500.0,0.00022465,2]
[336917014,1725241859770,-151.0,0.00022465,7]
[336917015,1725241859779,-500.0,0.00022465,2]
[336917016,1725241859790,-500.0,0.00022465,2]
[336917017,1725241859799,-500.0,0.00022465,2]
[336917018,1725241859809,-500.0,0.00022465,2]
[336917019,1725241859822,-151.0,0.00022465,7]
[336917020,1725241859833,-549.42,0.00022465,2]
[336917021,1725241859844,-586.82,0.00022465,2]
[336917022,1725241859853,-586.82,0.00022465,2]
[336917023,1725241859863,-1009.91,0.00022465,2]
[336917024,1725241859873,-151.0,0.00022465,7]
[336917025,1725241859882,-1009.91,0.00022465,2]
[336917026,1725241859892,-744.6,0.00022465,2]
[336917027,1725241859901,-679.71,0.00022465,2]
[336917028,1725241859910,-500.0,0.00022465,2]
[336917029,1725241859920,-538.44,0.00022465,2]
[336917030,1725241859929,-699.89,0.00022465,2]
[336917031,1725241859940,-500.0,0.00022465,2]
[336917032,1725241859950,-151.0,0.00022465,7]
[336917033,1725241859960,-546.52,0.00022465,2]
[336917034,1725241859970,-503.74,0.00022465,2]
[336917035,1725241859980,-624.25,0.00022465,2]
[336917036,1725241859989,-1030.96,0.00022465,2]
[336917037,1725241859999,-1030.96,0.00022465,2]
[336917038,1725241860008,-583.28,0.00022465,2]
[336917039,1725241860018,-715.1,0.00022465,2]
[336917040,1725241860028,-500.0,0.00022465,2]
[336917041,1725241860037,-500.0,0.00022465,2]
[336917042,1725241860047,-1248.92,0.00022465,2]
[336917043,1725241860057,-895.04,0.00022465,2]
[336917044,1725241860067,-1248.92,0.00022465,2]
[336917045,1725241860076,-895.04,0.00022465,2]
[336917046,1725241860086,-500.0,0.00022465,2]
[336917047,1725241860095,-151.0,0.00022465,7]
[336917048,1725241860104,-767.71,0.00022465,2]
[336917049,1725241860113,-616.48,0.00022465,2]
[336917050,1725241860123,-616.48,0.00022465,2]
[336917051,1725241860133,-9343.77,0.00022465,2]
[336917052,1725241860143,-9343.77,0.00022465,2]
[336917053,1725241860152,-500.0,0.00022465,2]
[336917054,1725241860161,-500.0,0.00022465,2]
[336917055,1725241860172,-500.0,0.00022465,2]
[336917056,1725241860182,-500.0,0.00022465,2]
[336917057,1725241860191,-500.0,0.00022465,2]
[336917058,1725241860202,-682.95,0.00022465,2]
[336917059,1725241860212,-500.0,0.00022465,2]
[336917060,1725241860221,-764.66,0.00022465,2]
[336917061,1725241860231,-500.0,0.00022465,2]
[336917062,1725241860241,-671.48,0.00022465,2]
[336917063,1725241860252,-500.0,0.00022465,2]
[336917064,1725241860261,-834.73,0.00022465,2]
[336917065,1725241860272,-834.73,0.00022465,2]
[336917066,1725241860282,-500.0,0.00022465,2]
[336917067,1725241860292,-772.26,0.00022465,2]
[336917068,1725241860302,-714.86,0.00022465,2]
[336917069,1725241860313,-1169.01,0.00022465,2]
[336917070,1725241860324,-503.31,0.00022465,2]
[336917071,1725241860334,-500.0,0.00022465,2]
[336917072,1725241860344,-500.0,0.00022465,2]
[336917073,1725241860354,-500.0,0.00022465,2]
[336917074,1725241860364,-151.0,0.00022465,7]
[336917075,1725241860373,-500.0,0.00022465,2]
[336917076,1725241860382,-1126.39,0.00022465,2]
[336917077,1725241860391,-500.0,0.00022465,2]
[336917078,1725241860401,-1126.39,0.00022465,2]
[336917079,1725241860410,-500.0,0.00022465,2]
[336917080,1725241860419,-500.0,0.00022465,2]
[336917081,1725241860429,-500.0,0.00022465,2]
[336917082,1725241860438,-930.31,0.00022465,2]
[336917083,1725241860447,-930.31,0.00022465,2]
[336917084,1725241860458,-723.85,0.00022465,2]
[336917085,1725241860467,-723.85,0.00022465,2]
[336917086,1725241860475,-500.0,0.00022465,2]
[336917087,1725241860485,-789.66,0.00022465,2]
[336917088,1725241860494,-500.0,0.00022465,2]
[336917089,1725241860504,-901.22,0.00022465,2]
[336917090,1725241860513,-901.22,0.00022465,2]
[336917091,1725241860523,-575.47,0.00022465,2]
[336917092,1725241860532,-363.16007341,0.00022465,2]
[336917093,1725241860541,-962.71,0.00022465,2]
[336917094,1725241860550,-500.0,0.00022465,2]
[336917095,1725241860560,-539.33,0.00022465,2]
[336917096,1725241860569,-1300.94,0.00022465,2]
[336917097,1725241860578,-653.29,0.00022465,2]
[336917098,1725241860587,-1015.25,0.00022465,2]
[336917099,1725241860596,-500.0,0.00022465,2]
[336917100,1725241860606,-542.0397022,0.00022465,2]
[336917101,1725241860616,-500.0,0.00022465,2]
[336917102,1725241860627,-556.06,0.00022465,2]
[336917103,1725241860637,-154.289447,0.00022465,7]
[336917104,1725241860648,-774.0,0.00022465,2]
[336917105,1725241860658,-2551.2,0.00022465,2]
[336917106,1725241860667,-2551.2,0.00022465,2]
[336917107,1725241860676,-2136.87,0.00022465,2]
[336917108,1725241860686,-500.0,0.00022465,2]
[336917109,1725241860695,-753.52,0.00022465,2]
[336917110,1725241860707,-500.0,0.00022465,2]
[336917111,1725241860716,-753.52,0.00022465,2]
[336917112,1725241860725,-1642.36,0.00022465,2]
[336917113,1725241860735,-959.07,0.00022465,2]
[336917114,1725241860749,-1642.36,0.00022465,2]
[336917115,1725241860760,-861.18,0.00022465,2]
[336917116,1725241860770,-591.61,0.00022465,2]
[336917117,1725241860783,-670.58,0.00022465,2]
[336917118,1725241860794,-1901.91,0.00022465,2]
[336917119,1725241860804,-1901.91,0.00022465,2]
[336917120,1725241860813,-670.58,0.00022465,2]
[336917121,1725241860827,-705.48,0.00022465,2]
[336917122,1725241860837,-705.48,0.00022465,2]
[336917123,1725241860847,-759.66,0.00022465,2]
[336917124,1725241860858,-500.0,0.00022465,2]
[336917125,1725241860869,-500.0,0.00022465,2]
[336917126,1725241860879,-500.0,0.00022465,2]
[336917127,1725241860890,-939.34,0.00022465,2]
[336917128,1725241860901,-221.21661507,0.00022465,2]
[336917129,1725241860911,-198.0,0.00022466,30]
[336917130,1725241860922,-1352.12,0.00022466,2]
[336917131,1725241860932,-691.79,0.00022466,2]
[336917132,1725241860943,-500.0,0.00022466,2]
[336917133,1725241860956,-500.0,0.00022466,2]
[336917134,1725241860967,-500.0,0.00022466,2]
[336917135,1725241860977,-243.95,0.00022466,2]
[336917136,1725241860986,-500.0,0.00022466,2]
[336917137,1725241860999,-1324.68,0.00022466,2]
[336917138,1725241861008,-509.78749394,0.00022466,2]
[336917139,1725241861021,-1476.63,0.00022466,2]
[336917140,1725241861030,-500.0,0.00022466,2]
[336917141,1725241861039,-500.0,0.00022466,2]
[336917142,1725241861049,-500.0,0.00022466,2]
[336917143,1725241861058,-500.0,0.00022466,2]
[336917144,1725241861067,-500.0,0.00022466,2]
[336917145,1725241861077,-500.0,0.00022466,2]
[336917146,1725241861086,-500.0,0.00022466,2]
[336917147,1725241861096,-500.0,0.00022466,2]
[336917148,1725241861106,-803.39,0.00022466,2]
[336917149,1725241861116,-500.0,0.00022466,2]
[336917150,1725241861126,-500.0,0.00022466,2]
[336917151,1725241861136,-500.0,0.00022466,2]
[336917152,1725241861145,-500.0,0.00022466,2]
[336917153,1725241861155,-500.0,0.00022466,2]
[336917154,1725241861165,-500.0,0.00022466,2]
[336917155,1725241861175,-822.34,0.00022466,2]
[336917156,1725241861184,-500.0,0.00022466,2]
[336917157,1725241861193,-701.49,0.00022466,2]
[336917158,1725241861206,-830.7,0.00022466,2]
[336917159,1725241861216,-500.0,0.00022466,2]
[336917160,1725241861226,-500.0,0.00022466,2]
[336917161,1725241861235,-979.92,0.00022466,2]
[336917162,1725241861245,-500.0,0.00022466,2]
[336917163,1725241861258,-500.0,0.00022466,2]
[336917164,1725241861268,-500.0,0.00022466,2]
[336917165,1725241861278,-173.9391658,0.00022466,2]
[336917166,1725241861288,-500.0,0.00022466,2]
[336917167,1725241861301,-500.0,0.00022466,2]
[336917168,1725241861320,-500.0,0.00022466,2]
[336917169,1725241861333,-500.0,0.00022466,2]
[336917170,1725241861343,-552.67,0.00022466,2]
[336917171,1725241861353,-1125.19,0.00022466,2]
[336917172,1725241861363,-500.0,0.00022466,2]
[336917173,1725241861373,-695.14,0.00022466,2]
[336917174,1725241861383,-500.0,0.00022466,2]
[336917175,1725241861392,-677.64,0.00022466,2]
[336917176,1725241861402,-1024.1,0.00022466,2]
[336917177,1725241861412,-617.78,0.00022466,2]
[336917178,1725241861422,-500.0,0.00022466,2]
[336917179,1725241861432,-1003.09,0.00022466,2]
[336917180,1725241861443,-500.0,0.00022466,2]
[336917181,1725241861453,-500.0,0.00022466,2]
[336917182,1725241861463,-500.0,0.00022466,2]
[336917183,1725241861472,-614.88,0.00022466,2]
[336917184,1725241861481,-500.0,0.00022466,2]
[336917185,1725241861490,-634.57845434,0.00022466,2]
[336917186,1725241861500,-500.0,0.00022466,2]
[336917187,1725241861509,-500.0,0.00022466,2]
[336917188,1725241861518,-581.69,0.00022466,2]
[336917189,1725241861527,-500.0,0.00022466,2]
[336917190,1725241861538,-500.0,0.00022466,2]
[336917191,1725241861549,-500.0,0.00022466,2]
[336917192,1725241861559,-1127.57,0.00022466,2]
[336917193,1725241861568,-570.0,0.00022466,2]
[336917194,1725241861577,-500.0,0.00022466,2]
[336917195,1725241861586,-500.0,0.00022466,2]
[336917196,1725241861595,-623.63,0.00022466,2]
[336917197,1725241861605,-500.0,0.00022466,2]
[336917198,1725241861614,-500.0,0.00022466,2]
[336917199,1725241861623,-500.0,0.00022466,2]
[336917200,1725241861632,-500.0,0.00022466,2]
[336917201,1725241861642,-507.02,0.00022466,2]
[336917202,1725241861651,-905.53,0.00022466,2]
[336917203,1725241861660,-1466.58,0.00022466,2]
[336917204,1725241861669,-500.0,0.00022466,2]
[336917205,1725241861678,-1199.6,0.00022466,2]
[336917206,1725241861687,-500.0,0.00022466,2]
[336917207,1725241861697,-500.0,0.00022466,2]
[336917208,1725241861707,-500.0,0.00022466,2]
[336917209,1725241861716,-723.81,0.00022466,2]
[336917210,1725241861725,-500.0,0.00022466,2]
[336917211,1725241861734,-2802.61,0.00022466,2]
[336917212,1725241861745,-500.0,0.00022466,2]
[336917213,1725241861756,-500.0,0.00022466,2]